[Event "Late-Titled-Tuesday-Blitz-January-16-2024"]
[Site "Chess.com"]
[Date "2024.01.16"]
[Round "6"]
[White "Byniolus"]
[Black "Harsha_Bharathakoti"]
[Result "1-0"]
[WhiteElo "2766"]
[BlackElo "2935"]
[TimeControl "180+1"]
[EndTime "15:04:07 PST"]
[Termination "Byniolus won by resignation"]

1. d4 {[%clk 0:03:00.9]} 1... Nf6 {[%clk 0:02:56.7]} 2. Nf3 {[%clk 0:03:01.1]}
2... c5 {[%clk 0:02:56.6]} 3. c3 {[%clk 0:03:01.2]} 3... e6 {[%clk 0:02:54.5]}
4. Bf4 {[%clk 0:03:01.4]} 4... cxd4 {[%clk 0:02:54.6]} 5. cxd4 {[%clk
0:03:01.5]} 5... Qb6 {[%clk 0:02:55.1]} 6. Qb3 {[%clk 0:03:01.7]} 6... Qxb3
{[%clk 0:02:55.2]} 7. axb3 {[%clk 0:03:02.6]} 7... Nc6 {[%clk 0:02:52.1]} 8. e3
{[%clk 0:03:00.7]} 8... Bb4+ {[%clk 0:02:49.2]} 9. Nbd2 {[%clk 0:02:58.3]} 9...
d5 {[%clk 0:02:43.8]} 10. Bd3 {[%clk 0:02:57.4]} 10... Nh5 {[%clk 0:02:40.2]}
11. Be5 {[%clk 0:02:55.4]} 11... f6 {[%clk 0:02:38.7]} 12. Bc7 {[%clk
0:02:55.4]} 12... Kd7 {[%clk 0:02:33.2]} 13. Bb6 {[%clk 0:02:45.5]} 13... g6
{[%clk 0:02:29]} 14. Ke2 {[%clk 0:02:38.7]} 14... Kd6 {[%clk 0:01:55.9]} 15.
Rhc1 {[%clk 0:02:31.3]} 15... e5 {[%clk 0:01:56.3]} 16. Bc5+ {[%clk 0:02:10.6]}
16... Bxc5 {[%clk 0:01:56.4]} 17. dxc5+ {[%clk 0:02:11.5]} 17... Kc7 {[%clk
0:01:52.2]} 18. Bb5 {[%clk 0:02:01.8]} 18... Bd7 {[%clk 0:01:45.5]} 19. g3
{[%clk 0:01:42.2]} 19... Ng7 {[%clk 0:01:38.2]} 20. e4 {[%clk 0:01:32.2]} 20...
dxe4 {[%clk 0:01:39.1]} 21. Nxe4 {[%clk 0:01:32.5]} 21... Rhf8 {[%clk
0:01:36.8]} 22. Nd6 {[%clk 0:01:26.7]} 22... Nf5 {[%clk 0:01:34.4]} 23. Nxf5
{[%clk 0:01:21.5]} 23... Bxf5 {[%clk 0:01:35.3]} 24. Ke3 {[%clk 0:01:15.9]}
24... Rfd8 {[%clk 0:01:10.9]} 25. Ra4 {[%clk 0:00:40]} 25... a6 {[%clk
0:01:00.1]} 26. Bxc6 {[%clk 0:00:38.1]} 26... Kxc6 {[%clk 0:01:01]} 27. Rb4
{[%clk 0:00:38.6]} 27... Rd3+ {[%clk 0:00:38.8]} 28. Ke2 {[%clk 0:00:38.4]}
28... Rad8 {[%clk 0:00:36.6]} 29. Rb6+ {[%clk 0:00:21.5]} 29... Kc7 {[%clk
0:00:36.9]} 30. Rxf6 {[%clk 0:00:21.8]} 30... Rxb3 {[%clk 0:00:19]} 31. Nxe5
{[%clk 0:00:14.7]} 31... Rxb2+ {[%clk 0:00:18.1]} 32. Ke1 {[%clk 0:00:09.3]}
32... Re8 {[%clk 0:00:15.8]} 33. f4 {[%clk 0:00:06.2]} 33... Rxh2 {[%clk
0:00:16.7]} 34. Rf7+ {[%clk 0:00:06]} 34... Kc8 {[%clk 0:00:16.5]} 35. c6 {[%clk
0:00:05.5]} 35... Rh1+ {[%clk 0:00:11.9]} 36. Kd2 {[%clk 0:00:06.4]} 36... Rd8+
{[%clk 0:00:02]} 37. Rd7 {[%clk 0:00:05]} 37... Rxc1 {[%clk 0:00:01.8]} 38.
cxb7+ {[%clk 0:00:02.3]} 38... Kb8 {[%clk 0:00:02.5]} 39. Rxd8+ {[%clk
0:00:02.9]} 39... Kxb7 {[%clk 0:00:02.1]} 40. Kxc1 {[%clk 0:00:02.9]} 1-0

[Event "Late-Titled-Tuesday-Blitz-January-16-2024"]
[Site "Chess.com"]
[Date "2024.01.16"]
[Round "6"]
[White "aceontheturn"]
[Black "RuleOfTwo"]
[Result "1-0"]
[WhiteElo "2755"]
[BlackElo "2573"]
[TimeControl "180+1"]
[EndTime "15:04:07 PST"]
[Termination "aceontheturn won by resignation"]

1. d4 {[%clk 0:02:56.4]} 1... Nf6 {[%clk 0:02:59.9]} 2. c4 {[%clk 0:02:56.3]}
2... e6 {[%clk 0:03:00.6]} 3. Nc3 {[%clk 0:02:56.3]} 3... Bb4 {[%clk 0:03:00.7]}
4. e3 {[%clk 0:02:57]} 4... c5 {[%clk 0:02:58.7]} 5. Ne2 {[%clk 0:02:51.4]} 5...
O-O {[%clk 0:02:57.2]} 6. a3 {[%clk 0:02:51.2]} 6... Bxc3+ {[%clk 0:02:51.6]} 7.
Nxc3 {[%clk 0:02:52.1]} 7... b6 {[%clk 0:02:49.2]} 8. d5 {[%clk 0:02:39.8]} 8...
exd5 {[%clk 0:02:42.5]} 9. cxd5 {[%clk 0:02:39.5]} 9... d6 {[%clk 0:02:41.9]}
10. Be2 {[%clk 0:02:33.9]} 10... Bf5 {[%clk 0:02:36.6]} 11. O-O {[%clk
0:02:34.8]} 11... a6 {[%clk 0:02:35.3]} 12. f3 {[%clk 0:02:13.5]} 12... b5
{[%clk 0:02:32.3]} 13. e4 {[%clk 0:02:12.7]} 13... Bg6 {[%clk 0:02:24.7]} 14.
Bf4 {[%clk 0:02:06.3]} 14... Re8 {[%clk 0:02:17.9]} 15. Qd2 {[%clk 0:02:01.2]}
15... c4 {[%clk 0:02:10]} 16. Kh1 {[%clk 0:01:57.7]} 16... Qe7 {[%clk
0:01:56.4]} 17. Rae1 {[%clk 0:01:54.8]} 17... Nbd7 {[%clk 0:01:56.6]} 18. Be3
{[%clk 0:01:20.2]} 18... Ne5 {[%clk 0:01:48.4]} 19. f4 {[%clk 0:01:15.2]} 19...
Nxe4 {[%clk 0:01:15.3]} 20. Nxe4 {[%clk 0:01:14.1]} 20... Bxe4 {[%clk
0:01:16.2]} 21. fxe5 {[%clk 0:01:12.9]} 21... Qxe5 {[%clk 0:01:17.1]} 22. Bf4
{[%clk 0:01:09]} 22... Qxd5 {[%clk 0:01:09.2]} 23. Qxd5 {[%clk 0:01:05.4]} 23...
Bxd5 {[%clk 0:01:10.1]} 24. Bxd6 {[%clk 0:01:03.9]} 24... Rad8 {[%clk
0:01:08.5]} 25. Bb4 {[%clk 0:01:04.4]} 25... f6 {[%clk 0:00:57.7]} 26. Bf3
{[%clk 0:01:04.7]} 26... Kf7 {[%clk 0:00:53.9]} 27. Bxd5+ {[%clk 0:01:02.7]}
27... Rxd5 {[%clk 0:00:53.5]} 28. Rxe8 {[%clk 0:01:03.5]} 28... Kxe8 {[%clk
0:00:54.4]} 29. Re1+ {[%clk 0:01:04.2]} 29... Kf7 {[%clk 0:00:53.8]} 30. Kg1
{[%clk 0:01:03.6]} 30... Kg6 {[%clk 0:00:47.9]} 31. Kf2 {[%clk 0:01:04.2]} 31...
Rf5+ {[%clk 0:00:46.3]} 32. Ke3 {[%clk 0:01:02.5]} 32... Re5+ {[%clk 0:00:46]}
33. Kd4 {[%clk 0:01:03.2]} 33... Rg5 {[%clk 0:00:45.1]} 34. g3 {[%clk
0:01:02.4]} 34... h5 {[%clk 0:00:44.6]} 35. Re6 {[%clk 0:01:02.1]} 35... h4
{[%clk 0:00:45]} 36. gxh4 {[%clk 0:00:48.6]} 36... Rg4+ {[%clk 0:00:45]} 37. Kc5
{[%clk 0:00:47.8]} 37... Rxh4 {[%clk 0:00:44.7]} 38. Rxa6 {[%clk 0:00:48.3]}
38... Rxh2 {[%clk 0:00:45.1]} 39. Kxb5 {[%clk 0:00:47.9]} 39... Rxb2 {[%clk
0:00:45.2]} 40. Kxc4 {[%clk 0:00:48.3]} 40... Kf5 {[%clk 0:00:43.6]} 41. a4
{[%clk 0:00:46.9]} 41... g5 {[%clk 0:00:39.6]} 42. Bc3 {[%clk 0:00:38.9]} 42...
Rh2 {[%clk 0:00:24.4]} 43. Rxf6+ {[%clk 0:00:38.5]} 43... Ke4 {[%clk 0:00:24.9]}
44. Re6+ {[%clk 0:00:38.9]} 44... Kf3 {[%clk 0:00:23.5]} 45. a5 {[%clk
0:00:38.8]} 45... g4 {[%clk 0:00:22.4]} 46. a6 {[%clk 0:00:38.1]} 46... g3
{[%clk 0:00:16.9]} 47. Rf6+ {[%clk 0:00:36.7]} 47... Ke2 {[%clk 0:00:16.2]} 48.
Rg6 {[%clk 0:00:37.5]} 48... Kf3 {[%clk 0:00:10]} 49. Rxg3+ {[%clk 0:00:30.3]}
49... Kf4 {[%clk 0:00:06.2]} 50. Rg7 {[%clk 0:00:24.3]} 50... Rh8 {[%clk
0:00:03.6]} 1-0

[Event "Late-Titled-Tuesday-Blitz-January-16-2024"]
[Site "Chess.com"]
[Date "2024.01.16"]
[Round "6"]
[White "RianKapriaga"]
[Black "C_K_G"]
[Result "1/2-1/2"]
[WhiteElo "2364"]
[BlackElo "2080"]
[TimeControl "180+1"]
[EndTime "15:04:07 PST"]
[Termination "Game drawn by repetition"]

1. d4 {[%clk 0:03:00.9]} 1... d5 {[%clk 0:02:59.8]} 2. Nf3 {[%clk 0:03:01.2]}
2... e6 {[%clk 0:03:00]} 3. Bf4 {[%clk 0:03:01.7]} 3... Nf6 {[%clk 0:03:00.5]}
4. e3 {[%clk 0:03:01.7]} 4... Bd6 {[%clk 0:03:01.1]} 5. Bg3 {[%clk 0:03:01.6]}
5... c5 {[%clk 0:03:01.3]} 6. Nbd2 {[%clk 0:03:00.4]} 6... Nc6 {[%clk
0:02:59.1]} 7. c3 {[%clk 0:03:00.8]} 7... c4 {[%clk 0:02:58.5]} 8. b3 {[%clk
0:02:58]} 8... b5 {[%clk 0:02:57.2]} 9. a4 {[%clk 0:02:57.3]} 9... b4 {[%clk
0:02:57.1]} 10. bxc4 {[%clk 0:02:51.9]} 10... bxc3 {[%clk 0:02:56.4]} 11. Nb3
{[%clk 0:02:51.2]} 11... dxc4 {[%clk 0:02:40.1]} 12. Bxc4 {[%clk 0:02:49.8]}
12... Bb4 {[%clk 0:02:15.9]} 13. O-O {[%clk 0:02:48.2]} 13... O-O {[%clk
0:02:15.1]} 14. Qc2 {[%clk 0:02:44.8]} 14... Bb7 {[%clk 0:02:11.6]} 15. Rfd1
{[%clk 0:02:41.9]} 15... Na5 {[%clk 0:01:57.6]} 16. Be2 {[%clk 0:02:35.1]} 16...
Be4 {[%clk 0:01:54.6]} 17. Bd3 {[%clk 0:02:34.1]} 17... Bxf3 {[%clk 0:01:52.8]}
18. gxf3 {[%clk 0:02:33.5]} 18... Rc8 {[%clk 0:01:47.4]} 19. Rdc1 {[%clk
0:02:28.6]} 19... h6 {[%clk 0:01:46.5]} 20. Kh1 {[%clk 0:02:27.5]} 20... Qd5
{[%clk 0:01:41.3]} 21. Nxa5 {[%clk 0:02:15.2]} 21... Qxf3+ {[%clk 0:01:40.6]}
22. Kg1 {[%clk 0:02:14.2]} 22... Bxa5 {[%clk 0:01:40.4]} 23. Rab1 {[%clk
0:02:09.7]} 23... Nd5 {[%clk 0:01:30.1]} 24. Bh7+ {[%clk 0:01:54.9]} 24... Kh8
{[%clk 0:01:29.4]} 25. Be4 {[%clk 0:01:53.3]} 25... Qh5 {[%clk 0:01:28.2]} 26.
Rb5 {[%clk 0:01:51.3]} 26... Bc7 {[%clk 0:01:06.8]} 27. Qb3 {[%clk 0:01:48.7]}
27... Bxg3 {[%clk 0:01:06]} 28. hxg3 {[%clk 0:01:48.7]} 28... a6 {[%clk
0:00:50.8]} 29. Ra5 {[%clk 0:01:44.8]} 29... Rfd8 {[%clk 0:00:42.7]} 30. Bxd5
{[%clk 0:01:43.3]} 30... Rxd5 {[%clk 0:00:34.6]} 31. Rxd5 {[%clk 0:01:41.8]}
31... exd5 {[%clk 0:00:20.5]} 32. Rxc3 {[%clk 0:01:38.8]} 32... Rxc3 {[%clk
0:00:20.5]} 33. Qxc3 {[%clk 0:01:38.7]} 33... Qd1+ {[%clk 0:00:20.1]} 34. Kg2
{[%clk 0:01:39.1]} 34... Qxa4 {[%clk 0:00:20.6]} 35. Qc8+ {[%clk 0:01:35.2]}
35... Kh7 {[%clk 0:00:19.6]} 36. Qf5+ {[%clk 0:01:35.6]} 36... Kg8 {[%clk
0:00:19.9]} 37. Qxd5 {[%clk 0:01:34.3]} 37... Qb5 {[%clk 0:00:16.4]} 38. Qxb5
{[%clk 0:01:30.3]} 38... axb5 {[%clk 0:00:17.3]} 39. Kf1 {[%clk 0:01:30]} 39...
Kf8 {[%clk 0:00:16.8]} 40. Ke2 {[%clk 0:01:29.9]} 40... Ke7 {[%clk 0:00:17.3]}
41. Kd3 {[%clk 0:01:29.8]} 41... Kd6 {[%clk 0:00:17.2]} 42. Kc3 {[%clk
0:01:30.3]} 42... h5 {[%clk 0:00:17.6]} 43. f4 {[%clk 0:01:27.3]} 43... g6
{[%clk 0:00:18.2]} 44. e4 {[%clk 0:01:25.2]} 44... f6 {[%clk 0:00:18.3]} 45. e5+
{[%clk 0:01:25]} 45... fxe5 {[%clk 0:00:18]} 46. dxe5+ {[%clk 0:01:24.3]} 46...
Kc5 {[%clk 0:00:16.2]} 47. Kb3 {[%clk 0:01:23.5]} 47... b4 {[%clk 0:00:15.5]}
48. Kb2 {[%clk 0:01:18.7]} 48... Kb5 {[%clk 0:00:15.7]} 49. Kc2 {[%clk
0:01:14.1]} 49... Kc5 {[%clk 0:00:15]} 50. Kd3 {[%clk 0:01:13.8]} 50... Kd5
{[%clk 0:00:14.7]} 51. Kc2 {[%clk 0:01:09.5]} 51... Kc5 {[%clk 0:00:14.9]} 52.
Kb2 {[%clk 0:01:08.9]} 52... Kc6 {[%clk 0:00:12.8]} 53. Kb3 {[%clk 0:01:06.8]}
53... Kb5 {[%clk 0:00:13.1]} 54. Kb2 {[%clk 0:00:53.8]} 54... Kc6 {[%clk
0:00:12.6]} 55. Kc2 {[%clk 0:00:53.6]} 55... Kc5 {[%clk 0:00:12.4]} 1/2-1/2

[Event "Late-Titled-Tuesday-Blitz-January-16-2024"]
[Site "Chess.com"]
[Date "2024.01.16"]
[Round "6"]
[White "babero_gordo"]
[Black "JaackCamel"]
[Result "0-1"]
[WhiteElo "1952"]
[BlackElo "2145"]
[TimeControl "180+1"]
[EndTime "15:04:08 PST"]
[Termination "JaackCamel won by resignation"]

1. e4 {[%clk 0:03:00.9]} 1... e6 {[%clk 0:02:54.1]} 2. d4 {[%clk 0:03:00.4]}
2... d5 {[%clk 0:02:54.1]} 3. e5 {[%clk 0:03:01]} 3... c5 {[%clk 0:02:53.8]} 4.
c3 {[%clk 0:03:01.4]} 4... Nc6 {[%clk 0:02:53.7]} 5. Nf3 {[%clk 0:03:01.8]} 5...
Qb6 {[%clk 0:02:53.4]} 6. Bd3 {[%clk 0:03:00.7]} 6... cxd4 {[%clk 0:02:52.6]} 7.
O-O {[%clk 0:02:59.4]} 7... Bd7 {[%clk 0:02:52.3]} 8. Re1 {[%clk 0:02:55]} 8...
Nge7 {[%clk 0:02:39.3]} 9. h4 {[%clk 0:02:54.3]} 9... Rc8 {[%clk 0:02:31.7]} 10.
Ng5 {[%clk 0:02:19.8]} 10... h6 {[%clk 0:02:27.1]} 11. Nh7 {[%clk 0:01:48.1]}
11... a6 {[%clk 0:02:12]} 12. Qf3 {[%clk 0:01:31.4]} 12... Nd8 {[%clk
0:02:03.1]} 13. Bxh6 {[%clk 0:01:25.7]} 13... Rxh7 {[%clk 0:01:56.5]} 14. Bxh7
{[%clk 0:01:19.8]} 14... gxh6 {[%clk 0:01:56.3]} 15. cxd4 {[%clk 0:01:02.3]}
15... Qxd4 {[%clk 0:01:51.1]} 16. Nc3 {[%clk 0:01:02.2]} 16... Nec6 {[%clk
0:01:38.6]} 17. Rad1 {[%clk 0:01:00.9]} 17... Qxh4 {[%clk 0:01:32]} 18. Rxd5
{[%clk 0:00:45.9]} 18... exd5 {[%clk 0:01:27.8]} 19. Nxd5 {[%clk 0:00:45.1]}
19... Be6 {[%clk 0:01:13.4]} 20. Nf6+ {[%clk 0:00:44.1]} 20... Ke7 {[%clk
0:01:07.1]} 21. Ng8+ {[%clk 0:00:42.4]} 21... Kd7 {[%clk 0:01:02.1]} 22. Rd1+
{[%clk 0:00:41.2]} 22... Kc7 {[%clk 0:00:58.3]} 23. Nf6 {[%clk 0:00:37.7]} 23...
Qa4 {[%clk 0:00:47.4]} 24. Qd3 {[%clk 0:00:19.2]} 24... Nxe5 {[%clk 0:00:38.4]}
25. Qc3+ {[%clk 0:00:18.7]} 25... Nec6 {[%clk 0:00:37.4]} 26. Rc1 {[%clk
0:00:17.3]} 26... Kb8 {[%clk 0:00:36.6]} 27. Be4 {[%clk 0:00:14.7]} 27... Bb4
{[%clk 0:00:24.8]} 28. Qg3+ {[%clk 0:00:14.5]} 28... Ka8 {[%clk 0:00:22.5]} 29.
Qe3 {[%clk 0:00:14.3]} 29... Qb5 {[%clk 0:00:19.2]} 30. Bd3 {[%clk 0:00:14.3]}
30... Qe5 {[%clk 0:00:14.6]} 31. Qf3 {[%clk 0:00:12.7]} 31... Bd6 {[%clk
0:00:11.5]} 32. Ng4 {[%clk 0:00:11.9]} 32... Qf4 {[%clk 0:00:10.5]} 33. Nh2
{[%clk 0:00:10.5]} 33... Qxc1+ {[%clk 0:00:10.1]} 34. Bf1 {[%clk 0:00:09.7]}
34... Bxh2+ {[%clk 0:00:09.4]} 35. Kxh2 {[%clk 0:00:09.8]} 35... Qxf1 {[%clk
0:00:09.7]} 36. Qe3 {[%clk 0:00:10.1]} 36... Qc4 {[%clk 0:00:08.8]} 37. Qg3
{[%clk 0:00:10.2]} 37... Qxa2 {[%clk 0:00:08.3]} 38. Qe3 {[%clk 0:00:10.1]}
38... Qxb2 {[%clk 0:00:08]} 39. g3 {[%clk 0:00:10.9]} 39... Qb5 {[%clk
0:00:07.9]} 40. Qf4 {[%clk 0:00:11]} 40... Qd5 {[%clk 0:00:08]} 41. Qe3 {[%clk
0:00:11]} 41... Qc4 {[%clk 0:00:07.4]} 42. Qf4 {[%clk 0:00:11.1]} 42... Qxf4
{[%clk 0:00:06.6]} 43. gxf4 {[%clk 0:00:12]} 43... Bf5 {[%clk 0:00:06.8]} 44.
Kg3 {[%clk 0:00:12.9]} 44... Ne6 {[%clk 0:00:06.9]} 45. Kf3 {[%clk 0:00:13.8]}
45... Ng7 {[%clk 0:00:07.1]} 46. Ke3 {[%clk 0:00:14.7]} 46... Rd8 {[%clk
0:00:07.4]} 47. Ke2 {[%clk 0:00:15.6]} 47... Kb8 {[%clk 0:00:08.1]} 0-1

[Event "Late-Titled-Tuesday-Blitz-January-16-2024"]
[Site "Chess.com"]
[Date "2024.01.16"]
[Round "6"]
[White "FrenchHarvey"]
[Black "Fh2411"]
[Result "0-1"]
[WhiteElo "2783"]
[BlackElo "2610"]
[TimeControl "180+1"]
[EndTime "15:04:09 PST"]
[Termination "Fh2411 won by resignation"]

1. e4 {[%clk 0:03:00.9]} 1... c6 {[%clk 0:02:59.5]} 2. Nc3 {[%clk 0:03:01.5]}
2... d5 {[%clk 0:02:58.8]} 3. Nf3 {[%clk 0:03:02.4]} 3... dxe4 {[%clk
0:02:58.9]} 4. Nxe4 {[%clk 0:03:03.3]} 4... Nf6 {[%clk 0:02:59.3]} 5. Qe2 {[%clk
0:03:03.6]} 5... Nxe4 {[%clk 0:02:59.4]} 6. Qxe4 {[%clk 0:03:04.5]} 6... Qa5
{[%clk 0:02:59.7]} 7. Bc4 {[%clk 0:03:03.2]} 7... Bf5 {[%clk 0:02:57.9]} 8. Qf4
{[%clk 0:03:03.1]} 8... e6 {[%clk 0:02:57.8]} 9. O-O {[%clk 0:02:55.2]} 9... Be7
{[%clk 0:02:54.4]} 10. Nd4 {[%clk 0:02:54.7]} 10... Bg6 {[%clk 0:02:45.6]} 11.
Bxe6 {[%clk 0:02:50.8]} 11... O-O {[%clk 0:01:45]} 12. Bb3 {[%clk 0:02:45.6]}
12... Nd7 {[%clk 0:01:42.2]} 13. d3 {[%clk 0:02:38.7]} 13... Nc5 {[%clk
0:01:42]} 14. Bd2 {[%clk 0:02:26.8]} 14... Qd8 {[%clk 0:01:40.2]} 15. Nf5 {[%clk
0:02:25.5]} 15... Bf6 {[%clk 0:01:33.8]} 16. Bc3 {[%clk 0:02:20.6]} 16... Bxc3
{[%clk 0:01:28.9]} 17. bxc3 {[%clk 0:02:19.4]} 17... Qd7 {[%clk 0:01:17]} 18.
Ne3 {[%clk 0:02:02.4]} 18... b5 {[%clk 0:00:55.8]} 19. Qe5 {[%clk 0:01:56.2]}
19... Nb7 {[%clk 0:00:41.7]} 20. a4 {[%clk 0:01:56]} 20... a6 {[%clk 0:00:41.8]}
21. axb5 {[%clk 0:01:48.6]} 21... axb5 {[%clk 0:00:41.1]} 22. h4 {[%clk
0:01:45.2]} 22... h5 {[%clk 0:00:35.6]} 23. Qg3 {[%clk 0:01:42.8]} 23... Kh7
{[%clk 0:00:34.3]} 24. f4 {[%clk 0:01:39.3]} 24... Bf5 {[%clk 0:00:28.8]} 25.
Qg5 {[%clk 0:01:35.7]} 25... Bg4 {[%clk 0:00:24.1]} 26. Nxg4 {[%clk 0:01:32.4]}
26... Qxg4 {[%clk 0:00:25]} 27. Qxg4 {[%clk 0:01:31.2]} 27... hxg4 {[%clk
0:00:25.9]} 28. Rxa8 {[%clk 0:01:30.9]} 28... Rxa8 {[%clk 0:00:26.6]} 29. Bxf7
{[%clk 0:01:31.5]} 29... Ra3 {[%clk 0:00:22.4]} 30. c4 {[%clk 0:01:24.6]} 30...
b4 {[%clk 0:00:22.3]} 31. Kh2 {[%clk 0:01:14.2]} 31... Rc3 {[%clk 0:00:19.1]}
32. Rf2 {[%clk 0:01:12.2]} 32... Nc5 {[%clk 0:00:19.1]} 33. Kg3 {[%clk
0:01:07.6]} 33... b3 {[%clk 0:00:18.2]} 34. cxb3 {[%clk 0:01:02.7]} 34... Nxd3
{[%clk 0:00:18.8]} 35. Be6 {[%clk 0:00:52.3]} 35... Nxf2+ {[%clk 0:00:18.3]} 36.
Kxf2 {[%clk 0:00:53.1]} 36... g3+ {[%clk 0:00:18.9]} 37. Ke2 {[%clk 0:00:53.4]}
37... Rxb3 {[%clk 0:00:19.6]} 38. c5 {[%clk 0:00:52.9]} 38... Rc3 {[%clk
0:00:20]} 39. h5 {[%clk 0:00:51.2]} 39... Kh6 {[%clk 0:00:19.9]} 40. Bf7 {[%clk
0:00:51.1]} 40... Rxc5 {[%clk 0:00:19.3]} 41. Kf3 {[%clk 0:00:51.2]} 41... Rc3+
{[%clk 0:00:19.9]} 42. Kg4 {[%clk 0:00:51.6]} 42... c5 {[%clk 0:00:20.6]} 43.
Bd5 {[%clk 0:00:50.8]} 43... Rd3 {[%clk 0:00:18.4]} 44. Bc4 {[%clk 0:00:48.7]}
44... Rd4 {[%clk 0:00:17.3]} 45. Bf7 {[%clk 0:00:49.4]} 45... c4 {[%clk
0:00:15.9]} 46. Kxg3 {[%clk 0:00:47.8]} 46... c3 {[%clk 0:00:16.3]} 47. Bg6
{[%clk 0:00:48.4]} 47... Rd2 {[%clk 0:00:15]} 48. Kh3 {[%clk 0:00:46.5]} 48...
c2 {[%clk 0:00:14.8]} 49. g4 {[%clk 0:00:47]} 49... Rd5 {[%clk 0:00:10.3]} 50.
Kh4 {[%clk 0:00:45.8]} 50... c1=Q {[%clk 0:00:05.6]} 51. g5+ {[%clk 0:00:43.8]}
51... Rxg5 {[%clk 0:00:05.8]} 52. fxg5+ {[%clk 0:00:44.2]} 52... Qxg5+ {[%clk
0:00:06.7]} 53. Kh3 {[%clk 0:00:44.8]} 53... Qf4 {[%clk 0:00:06.9]} 54. Kg2
{[%clk 0:00:45]} 54... Kg5 {[%clk 0:00:07.6]} 55. Kh3 {[%clk 0:00:45.3]} 55...
Qf3+ {[%clk 0:00:07.4]} 56. Kh2 {[%clk 0:00:45.7]} 56... Kh4 {[%clk 0:00:08]}
57. h6 {[%clk 0:00:46.1]} 57... gxh6 {[%clk 0:00:07.5]} 0-1

[Event "Late-Titled-Tuesday-Blitz-January-16-2024"]
[Site "Chess.com"]
[Date "2024.01.16"]
[Round "6"]
[White "GlavkonVVS"]
[Black "varunkrishnanchess"]
[Result "1-0"]
[WhiteElo "2473"]
[BlackElo "2628"]
[TimeControl "180+1"]
[EndTime "15:04:09 PST"]
[Termination "GlavkonVVS won on time"]

1. c4 {[%clk 0:02:51.6]} 1... a6 {[%clk 0:03:00.9]} 2. e3 {[%clk 0:02:49.8]}
2... c5 {[%clk 0:03:00.2]} 3. Nf3 {[%clk 0:02:49.7]} 3... Nc6 {[%clk 0:03:00]}
4. d4 {[%clk 0:02:50.2]} 4... cxd4 {[%clk 0:02:59.3]} 5. exd4 {[%clk 0:02:50.4]}
5... Nf6 {[%clk 0:02:51.1]} 6. Nc3 {[%clk 0:02:50.4]} 6... d5 {[%clk 0:02:49.3]}
7. h3 {[%clk 0:02:41.8]} 7... e6 {[%clk 0:02:45.7]} 8. a3 {[%clk 0:02:36.6]}
8... Bd6 {[%clk 0:02:33]} 9. c5 {[%clk 0:02:36.4]} 9... Bc7 {[%clk 0:02:32.7]}
10. b4 {[%clk 0:02:36.7]} 10... O-O {[%clk 0:02:32.2]} 11. Be2 {[%clk
0:02:30.3]} 11... e5 {[%clk 0:02:28]} 12. O-O {[%clk 0:02:19.3]} 12... e4 {[%clk
0:02:24.2]} 13. Ne1 {[%clk 0:02:12.2]} 13... Be6 {[%clk 0:02:17]} 14. Nc2 {[%clk
0:02:10.8]} 14... Qd7 {[%clk 0:02:15.4]} 15. f4 {[%clk 0:02:05.1]} 15... exf3
{[%clk 0:02:05.4]} 16. Bxf3 {[%clk 0:01:57.2]} 16... Ne7 {[%clk 0:02:04.4]} 17.
Bg5 {[%clk 0:01:55.6]} 17... Ne8 {[%clk 0:01:54]} 18. Qd2 {[%clk 0:01:53.4]}
18... f6 {[%clk 0:01:51.1]} 19. Bf4 {[%clk 0:01:53.2]} 19... Bxf4 {[%clk
0:01:49.3]} 20. Qxf4 {[%clk 0:01:53.3]} 20... Nc7 {[%clk 0:01:47.8]} 21. Rfe1
{[%clk 0:01:49.1]} 21... Rfe8 {[%clk 0:01:44.7]} 22. a4 {[%clk 0:01:47]} 22...
Ng6 {[%clk 0:01:40.2]} 23. Qg3 {[%clk 0:01:46.9]} 23... Bf5 {[%clk 0:01:38.8]}
24. Ne3 {[%clk 0:01:39.8]} 24... Be4 {[%clk 0:01:36.4]} 25. Bxe4 {[%clk
0:01:12.7]} 25... dxe4 {[%clk 0:01:34.4]} 26. d5 {[%clk 0:01:11.6]} 26... Re5
{[%clk 0:01:27.6]} 27. d6 {[%clk 0:01:10.8]} 27... Ne6 {[%clk 0:01:13.1]} 28.
Ncd5 {[%clk 0:01:06.9]} 28... Rf8 {[%clk 0:01:05.6]} 29. Red1 {[%clk 0:00:58.7]}
29... Kh8 {[%clk 0:01:02.4]} 30. Nb6 {[%clk 0:00:50.6]} 30... Qd8 {[%clk
0:00:59.8]} 31. d7 {[%clk 0:00:48.7]} 31... Rg5 {[%clk 0:00:56.4]} 32. Qd6
{[%clk 0:00:46.8]} 32... Ngf4 {[%clk 0:00:48.5]} 33. Kh2 {[%clk 0:00:45.2]}
33... f5 {[%clk 0:00:39.8]} 34. Rf1 {[%clk 0:00:38]} 34... Rg6 {[%clk
0:00:16.4]} 35. Rxf4 {[%clk 0:00:35.8]} 35... Qg5 {[%clk 0:00:13.6]} 36. Qxf8+
{[%clk 0:00:20.6]} 36... Nxf8 {[%clk 0:00:12.6]} 37. Rxf5 {[%clk 0:00:20.9]}
37... Qg3+ {[%clk 0:00:07.4]} 38. Kh1 {[%clk 0:00:20.8]} 38... Nxd7 {[%clk
0:00:06.5]} 39. Nxd7 {[%clk 0:00:20.1]} 39... h5 {[%clk 0:00:04.7]} 40. Ne5
{[%clk 0:00:18.8]} 40... Rf6 {[%clk 0:00:04.3]} 41. Rxh5+ {[%clk 0:00:17.8]}
41... Kg8 {[%clk 0:00:03.9]} 42. N5g4 {[%clk 0:00:18.3]} 42... Rf7 {[%clk
0:00:01.1]} 43. Rg5 {[%clk 0:00:18.6]} 43... Qf4 {[%clk 0:00:01.5]} 44. Rd5
{[%clk 0:00:15.4]} 1-0